bitfinex-derivatives/quotes_SOLF0:USTF0_20250730
["timestamp","ask_amount","ask_price","bid_price","bid_amount"]
[1753878649779,10.34875151,177.89,177.7,107.36]
[1753878649982,12.5864139,177.88,177.7,107.36]
[1753878650179,4.55431791,177.87,177.7,107.36]
[1753878650380,4.55431791,177.86,177.7,107.36]
[1753878650582,5.6218,177.89,177.7,107.36]
[1753878650792,8.06977579,177.88,177.7,107.36]
[1753878650991,4.55378859,177.87,177.7,107.36]
[1753878651193,4.55378859,177.86,177.71,107.36]
[1753878651493,5.6218,177.89,177.73,5.6265]
[1753878651693,4.55361919,177.88,177.73,5.6265]
[1753878651891,4.55361919,177.87,177.73,5.6265]
[1753878652193,5.6218,177.89,177.73,5.6265]
[1753878652387,4.55326945,177.88,177.73,5.6265]
[1753878652583,4.55326945,177.87,177.71,107.36]
[1753878652789,5.6223,177.87,177.71,107.36]
[1753878652992,3.3,177.86,177.72,3.06]
[1753878653392,3.3,177.86,177.73,3.06]
[1753878654496,3.3,177.86,177.75,3.06]
[1753878660092,3.3,177.86,177.64,377.76]
[1753878660296,3.3,177.86,177.72,3.06]
[1753878660894,4.51070512,177.85,177.72,3.06]
[1753878661097,3.3,177.84,177.72,3.06]
[1753878661900,4.51428806,177.83,177.72,3.06]
[1753878662101,3.3,177.82,177.72,3.06]
[1753878662400,3.3,177.82,177.7,3.06]
[1753878662997,3.3,177.82,177.72,3.06]
[1753878665194,4.53000882,177.81,177.72,3.06]
[1753878665394,3.3,177.79,177.7,107.32]
[1753878665797,4.53125165,177.78,177.7,107.32]
[1753878666099,4.53136697,177.77,177.69,121.74091725]
[1753878666298,3.3,177.75,177.65,3.06]
[1753878666701,3.3,177.73,177.64,485.08]
[1753878666895,4.53626456,177.72,177.64,107.32]
[1753878667102,3.3,177.71,177.64,107.32]
[1753878667500,3.3,177.69,177.64,107.32]
[1753878667810,3.3,177.73,177.65,3.06]
[1753878668107,3.3,177.71,177.65,3.06]
[1753878668303,3.3,177.69,177.58,3.06]
[1753878668498,4.54189272,177.68,177.58,3.06]
[1753878668811,5.6294,177.65,177.61,5.6303]
[1753878669009,5.6294,177.65,177.58,3.06]
[1753878669010,3.3,177.68,177.59,3.06]
[1753878669310,3.3,177.66,177.59,3.06]
[1753878669505,4.54218651,177.65,177.59,3.06]
[1753878669708,4.54218651,177.65,177.63,5.6295]
[1753878669907,4.54218651,177.65,177.64,3.06]
[1753878670708,7.84218651,177.65,177.64,3.06]
[1753878671106,7.84218651,177.65,177.62,8.69]
[1753878671408,7.84218651,177.65,177.63,8.6898]
[1753878671409,4.54218651,177.64,177.63,8.6898]
[1753878671611,4.54218651,177.64,177.63,3.06]
[1753878672607,7.84218651,177.64,177.58,8.6911]
[1753878672808,4.54748309,177.63,177.58,3.06]
[1753878673019,3.3,177.64,177.58,3.06]
[1753878673208,4.54723183,177.63,177.58,3.06]
[1753878673409,3.3,177.67,177.58,3.06]
[1753878673614,3.3,177.65,177.58,3.06]
[1753878673815,4.54502661,177.64,177.58,3.06]
[1753878674010,3.3,177.65,177.58,3.06]
[1753878674815,3.3,177.64,177.62,3.06]
[1753878675213,3.3,177.63,177.59,3.06]
[1753878675713,5.6294,177.65,177.59,3.06]
[1753878675906,4.54095599,177.64,177.59,3.06]
[1753878676109,3.3,177.63,177.57,233.23514171]
[1753878676308,3.3,177.63,177.57,122.79514171]
[1753878676506,3.3,177.63,177.55,3.06]
[1753878676705,4.5397555,177.62,177.55,3.06]
[1753878676916,8.931,177.6,177.55,3.06]
[1753878677118,4.5397555,177.61,177.54,383.6726]
[1753878677119,3.3,177.59,177.54,378.04]
[1753878677518,3.3,177.59,177.54,386.7324]
[1753878677919,5.6307,177.61,177.55,5.6323]
[1753878678119,3.3,177.6,177.55,8.6923]
[1753878678915,3.3,177.6,177.55,5.6323]
[1753878679123,4.72695151,177.66,177.57,5.6317]
[1753878679412,3.3,177.64,177.55,3.06]
[1753878679615,3.3,177.62,177.59,4.60362709]
[1753878680121,3.3,177.62,177.57,4.60362709]
[1753878680320,3.3,177.62,177.55,4.60362709]
[1753878680821,3.3,177.62,177.54,381.1]
[1753878681116,3.3,177.62,177.53,107.52]
[1753878681414,3.3,177.55,177.53,110.58]
[1753878681616,3.21,177.6,177.53,107.52]
[1753878681818,3.21,177.53,177.5,112.18362709]
[1753878682009,3.21,177.53,177.51,3.2]
[1753878682216,3.21,177.55,177.52,3.2]
[1753878682520,3.21,177.55,177.53,3.2]
[1753878682914,3.21,177.55,177.53,8.8329]
[1753878683320,3.21,177.54,177.53,3.2]
[1753878683523,3.21,177.54,177.52,8.8332]
[1753878683721,4.60362709,177.59,177.51,107.5]
[1753878684021,3.21,177.58,177.48,7.80362709]
[1753878684415,3.21,177.58,177.48,3.2]
[1753878684615,3.21,177.56,177.48,3.2]
[1753878685317,3.21,177.58,177.52,3.2]
[1753878686023,5.6317,177.57,177.53,8.833]
[1753878686226,3.21,177.55,177.53,8.833]
[1753878686423,3.21,177.55,177.53,3.2]
[1753878686823,3.21,177.54,177.53,3.2]
[1753878687328,4.60362709,177.65,177.53,4.60362709]
[1753878687515,3.21,177.6,177.58,4.60362709]
[1753878687824,3.21,177.58,177.56,7.80362709]
[1753878688024,3.21,177.58,177.57,3.2]
[1753878688521,3.21,177.58,177.56,4.60362709]
[1753878688727,3.21,177.58,177.56,7.80362709]
[1753878689029,3.21,177.57,177.56,7.80362709]
[1753878689227,4.60362709,177.64,177.54,4.60362709]
[1753878689424,5.6319,177.57,177.54,4.60362709]
[1753878689615,3.21,177.56,177.53,3.2]
[1753878689820,4.60362709,177.62,177.53,3.2]
[1753878690025,3.21,177.55,177.53,3.2]
[1753878690729,3.21,177.54,177.53,3.2]
[1753878691117,3.21,177.53,177.5,7.80362709]
[1753878691316,3.21,177.59,177.5,7.80362709]
[1753878691517,3.21,177.57,177.5,8.8339]
[1753878691917,5.6332,177.53,177.5,3.2]
[1753878692122,3.21,177.59,177.5,4.60362709]
[1753878692322,3.21,177.59,177.51,3.2]
[1753878692523,4.60362709,177.6,177.52,5.6332]
[1753878692725,3.21,177.59,177.52,3.2]
[1753878693116,3.21,177.59,177.43,4.60362709]
[1753878693117,3.21,177.54,177.46,3.2]
[1753878693315,3.21,177.54,177.4,11.2742]
[1753878693316,3.21,177.54,177.47,7.80362709]
[1753878693925,3.21,177.54,177.47,3.2]
[1753878694118,3.21,177.54,177.46,10.23882709]
[1753878694321,3.21,177.54,177.46,5.6352]
[1753878694720,3.21,177.48,177.46,3.2]
[1753878694919,3.21,177.53,177.46,3.2]
[1753878695118,5.6336,177.51,177.47,3.2]
[1753878695325,3.21,177.51,177.47,5.6348]
[1753878695520,3.21,177.51,177.46,4.60362709]
[1753878695724,4.60362709,177.58,177.5,3.2]
[1753878695920,11.91167076,177.57,177.53,3.2]
[1753878696125,3.21,177.61,177.54,4.60362709]
[1753878696319,6.06354544,177.66,177.56,4.60362709]
[1753878696320,16.3852917,177.6,177.56,4.60362709]
[1753878696533,3.21,177.62,177.59,3.2]
[1753878696729,16.38201475,177.61,177.59,3.2]
[1753878696926,3.21,177.63,177.59,3.2]
[1753878697127,3.21,177.63,177.6,3.2]
[1753878697332,3.21,177.63,177.61,3.2]
[1753878697526,3.21,177.64,177.62,3.2]
[1753878697728,8.8398,177.64,177.62,3.2]
[1753878698127,3.21,177.64,177.62,3.2]
[1753878698332,5.6293,177.65,177.63,3.2]
[1753878698628,3.21,177.67,177.58,4.60362709]
[1753878698831,5.6301,177.63,177.59,3.2]
[1753878699133,3.21,177.6,177.58,3.2]
[1753878699537,3.21,177.6,177.57,107.6]
[1753878699538,3.21,177.6,177.59,3.2]
[1753878700036,3.21,177.65,177.56,115.40362709]
[1753878700236,4.48425295,177.64,177.57,3.2]
[1753878700434,3.21,177.64,177.57,3.2]
[1753878700632,3.21,177.67,177.61,3.2]
[1753878700831,6.72992018,177.66,177.62,4.60362709]
[1753878701028,8.838,177.69,177.63,3.2]
[1753878701234,12.47337796,177.68,177.64,4.60362709]
[1753878701434,7.98612352,177.67,177.65,3.2]
[1753878701744,3.21,177.7,177.65,4.60362709]
[1753878702031,3.21,177.69,177.65,4.60362709]
[1753878702240,3.21,177.68,177.65,10.23262709]
[1753878703329,3.21,177.68,177.56,378.52]
[1753878703330,4.60362709,177.74,177.56,378.52]
[1753878703641,3.21,177.67,177.58,4.60362709]
[1753878703837,5.6298,177.64,177.59,5.6311]
[1753878704039,3.21,177.65,177.58,4.60362709]
[1753878704242,3.21,177.65,177.58,112.64362709]
[1753878704540,5.6298,177.64,177.58,121.47502709]
[1753878704742,3.21,177.62,177.59,3.2]
[1753878705135,3.21,177.62,177.6,3.2]
[1753878706137,4.60362709,177.66,177.58,108.04]
[1753878706338,5.6301,177.63,177.58,108.04]
[1753878706543,3.21,177.6,177.58,108.04]
[1753878706747,4.60362709,177.66,177.58,107.9]
[1753878706748,3.21,177.62,177.58,107.9]
[1753878706940,3.21,177.59,177.56,381.72]
[1753878707148,3.21,177.58,177.57,107.88]
[1753878707745,3.21,177.6,177.57,107.88]
[1753878707948,3.21,177.63,177.57,107.88]
[1753878708248,3.21,177.61,177.57,107.88]
[1753878708447,10.14121574,177.6,177.57,107.88]
[1753878708645,7.72011574,177.59,177.57,107.88]
[1753878708955,3.21,177.57,177.55,5.6322]
[1753878709247,3.21,177.57,177.54,3.2]
[1753878709446,4.72695151,177.61,177.57,5.6317]
[1753878709645,3.21,177.59,177.56,3.2]
[1753878709844,4.51904383,177.6,177.55,3.2]
[1753878709845,4.51904383,177.58,177.55,3.2]
[1753878710045,7.93695151,177.62,177.55,3.2]
[1753878710246,9.24579169,177.61,177.55,3.2]
[1753878710452,3.21,177.59,177.57,3.2]
[1753878710749,3.21,177.59,177.53,107.88]
[1753878710750,3.21,177.57,177.53,107.88]
[1753878711052,4.51884018,177.56,177.54,3.2]
[1753878711254,3.21,177.57,177.54,3.2]
[1753878711449,4.52687859,177.56,177.54,3.2]
[1753878711745,3.21,177.57,177.54,3.2]
[1753878711944,4.52687859,177.56,177.55,111.14]
[1753878712150,3.07,177.59,177.55,111.14]
[1753878712344,3.07,177.57,177.55,111.14]
[1753878712547,7.59857261,177.56,177.55,107.86]
[1753878712954,4.52857261,177.56,177.55,107.78]
[1753878713154,4.52857261,177.56,177.52,7.88362709]
[1753878713355,4.5453598,177.55,177.53,107.8]
[1753878713558,7.6153598,177.54,177.53,107.8]
[1753878713747,3.07,177.53,177.52,107.82]
[1753878713947,7.6153598,177.53,177.52,107.82]
[1753878714645,13.2483598,177.53,177.52,107.82]
[1753878714852,16.76984461,177.53,177.52,107.82]
[1753878715153,7.6153598,177.53,177.52,107.82]
[1753878715847,3.07,177.51,177.5,107.78]
[1753878716056,7.6153598,177.51,177.5,107.78]
[1753878716753,7.6153598,177.51,177.45,378.46]
[1753878716754,3.07,177.48,177.45,381.74]
[1753878716951,3.07,177.49,177.45,378.46]
[1753878717151,4.72695151,177.54,177.45,107.78]
[1753878717152,4.72695151,177.53,177.45,107.78]
[1753878717343,12.79726018,177.52,177.45,115.66362709]
[1753878717546,3.07,177.5,177.47,3.28]
[1753878717749,3.07,177.49,177.45,112.38362709]
[1753878718248,3.07,177.49,177.47,3.28]
[1753878718451,3.07,177.49,177.47,8.9147]
[1753878718758,3.07,177.52,177.45,111.06]
[1753878718955,5.6345,177.49,177.45,111.06]
[1753878719253,3.07,177.48,177.45,108.14]
[1753878719456,3.07,177.46,177.41,3.28]
[1753878719649,3.07,177.44,177.43,108.18]
[1753878720045,3.07,177.47,177.45,5.6353]
[1753878720246,4.72695151,177.51,177.43,112.78362709]
[1753878720450,3.07,177.49,177.47,4.60362709]
[1753878720649,3.07,177.51,177.47,4.60362709]
[1753878720860,3.07,177.51,177.49,3.28]
[1753878721258,3.07,177.55,177.49,3.28]
[1753878721553,4.60362709,177.58,177.48,108.26]
[1753878721554,3.07,177.53,177.48,108.26]
[1753878721755,3.07,177.51,177.48,108.26]
[1753878722151,3.07,177.47,177.45,108.24]
[1753878722357,4.60362709,177.54,177.45,112.84362709]
[1753878722557,4.60362709,177.54,177.45,116.12362709]
[1753878722558,3.07,177.52,177.45,116.12362709]
[1753878722855,8.16028928,177.51,177.47,4.60362709]
[1753878723048,3.07,177.52,177.48,3.28]
[1753878723254,3.07,177.51,177.49,5.6341]
[1753878723452,3.07,177.55,177.46,4.60362709]
[1753878723649,3.07,177.53,177.44,116.12362709]
[1753878723855,5.6341,177.5,177.44,112.84362709]
[1753878724051,4.60362709,177.54,177.44,112.84362709]
[1753878724258,3.07,177.46,177.44,116.12362709]
[1753878724458,3.07,177.48,177.45,3.28]
[1753878724654,4.60362709,177.54,177.4,3.28]
[1753878724655,4.60362709,177.5,177.4,3.28]
[1753878724861,4.60362709,177.48,177.4,113.8969]
[1753878725060,3.07,177.44,177.39,108.26]
[1753878725258,3.07,177.47,177.39,108.26]
[1753878725458,3.07,177.45,177.41,4.60362709]
[1753878725664,3.07,177.45,177.42,3.28]
[1753878725858,5.6351,177.47,177.42,8.9163]
[1753878726057,4.60362709,177.5,177.42,8.9163]
[1753878726259,7.67362709,177.48,177.39,116.14362709]
[1753878726562,5.6361,177.44,177.4,5.6371]
[1753878726764,3.07,177.42,177.39,111.54]
[1753878726964,3.07,177.41,177.39,111.54]
[1753878727260,4.60362709,177.46,177.39,108.26]
[1753878727462,4.60362709,177.44,177.36,3.28]
[1753878727662,3.07,177.43,177.35,486.74]
[1753878728160,4.60362709,177.4,177.25,390.0038]
[1753878728462,3.07,177.37,177.28,3.28]
[1753878728664,5.6397,177.33,177.28,5.6408]
[1753878728963,3.07,177.32,177.27,3.28]
[1753878729260,3.07,177.32,177.26,108.24]
[1753878729261,3.07,177.35,177.29,4.60362709]
[1753878729453,4.60362709,177.43,177.33,4.60362709]
[1753878729659,4.52916504,177.42,177.33,7.88362709]
[1753878729858,3.07,177.38,177.29,3.28]
[1753878730058,3.07,177.38,177.28,108.3]
[1753878730254,3.07,177.38,177.28,111.58]
[1753878730469,3.07,177.37,177.33,7.88362709]
[1753878730656,3.07,177.37,177.35,4.60362709]
[1753878730855,5.6367,177.42,177.38,5.6376]
[1753878731060,3.07,177.41,177.39,4.60362709]
[1753878731257,3.07,177.44,177.4,3.28]
[1753878731560,3.07,177.41,177.39,4.60362709]
[1753878732270,3.07,177.45,177.36,108.46]
[1753878732466,5.6373,177.4,177.36,5.6382]
[1753878732664,3.07,177.43,177.37,4.60362709]
[1753878732861,3.07,177.42,177.39,3.28]
[1753878733060,3.07,177.42,177.39,8.9173]
[1753878733372,3.07,177.45,177.4,3.28]
[1753878733663,3.07,177.48,177.4,5.6371]
[1753878733869,3.07,177.46,177.39,10.29188497]
[1753878734261,5.6359,177.44,177.4,5.6371]
[1753878734467,7.01188497,177.49,177.39,10.29188497]
[1753878734468,3.07,177.48,177.39,10.29188497]
[1753878734660,7.01188497,177.49,177.39,10.29188497]
[1753878734661,12.65164805,177.47,177.39,10.29188497]
[1753878734862,3.07,177.46,177.39,10.29188497]
[1753878735960,7.01188497,177.49,177.42,5.6365]
[1753878736161,11.20298187,177.48,177.43,3.28]
[1753878736365,3.07,177.47,177.44,3.28]
[1753878736967,5.6341,177.5,177.46,5.6352]
[1753878737167,7.67774367,177.49,177.43,3.28]
[1753878737373,3.07,177.49,177.43,3.28]
[1753878737765,7.01188497,177.55,177.44,5.6358]
[1753878737766,3.07,177.47,177.44,5.6358]
[1753878737962,3.07,177.54,177.42,7.01188497]
[1753878738166,5.6343,177.49,177.43,3.28]
[1753878738366,8.7043,177.49,177.43,3.28]
[1753878738770,3.07,177.49,177.43,3.28]
[1753878739069,3.07,177.49,177.42,7.01188497]
[1753878739471,5.6355,177.46,177.42,12.64828497]
[1753878739664,7.01188497,177.52,177.4,3.28]
[1753878739970,3.07,177.43,177.4,3.28]
[1753878740173,3.07,177.43,177.41,8.9166]
[1753878740471,7.01188497,177.49,177.37,3.28]
[1753878740768,3.07,177.45,177.37,3.28]
[1753878741273,3.07,177.45,177.33,7.01188497]
[1753878741477,3.15,177.42,177.33,7.01188497]
[1753878741774,3.15,177.42,177.35,5.6385]
[1753878741966,3.15,177.42,177.34,2.99]
[1753878742164,7.01188497,177.43,177.3,115.33188497]
[1753878742369,3.15,177.42,177.31,2.99]
[1753878742569,4.51206707,177.41,177.31,2.99]
[1753878742764,3.15,177.39,177.26,2.99]
[1753878743076,3.15,177.36,177.26,2.99]
[1753878743276,3.15,177.29,177.26,8.6315]
[1753878743575,3.15,177.29,177.26,2.99]
[1753878743763,7.01188497,177.37,177.26,2.99]
[1753878743764,3.15,177.36,177.26,2.99]
[1753878744368,3.15,177.32,177.26,2.99]
[1753878744673,3.15,177.35,177.29,2.99]
[1753878744872,5.6392,177.34,177.3,5.6402]
[1753878745072,3.15,177.34,177.29,2.99]
[1753878745274,3.15,177.34,177.3,2.99]
[1753878745468,5.6386,177.36,177.32,5.6394]
[1753878745672,7.01188497,177.4,177.3,2.99]
[1753878745969,3.15,177.36,177.25,394.36348497]
[1753878746273,3.15,177.36,177.25,381.71]
[1753878746569,8.7914,177.27,177.25,381.71]
[1753878746770,3.15,177.28,177.21,10.00188497]
[1753878746962,5.6413,177.27,177.23,5.6422]
[1753878747169,3.15,177.26,177.23,2.99]
[1753878747374,3.15,177.28,177.2,2.99]
[1753878747764,3.15,177.23,177.09,7.01188497]
[1753878747971,3.15,177.2,177.1,2.99]
[1753878748170,8.7936,177.2,177.1,2.99]
[1753878748371,3.15,177.2,177.1,2.99]
[1753878748567,3.15,177.2,177.12,7.01188497]
[1753878748769,8.7935,177.2,177.14,5.6454]
[1753878748965,3.15,177.19,177.16,2.99]
[1753878749574,3.15,177.19,177.12,7.01188497]
[1753878749768,3.15,177.19,177.17,2.99]
[1753878749968,3.15,177.19,177.14,5.6453]
[1753878750279,3.15,177.2,177.12,2.99]
[1753878750473,3.15,177.18,177.09,10.00188497]
[1753878750675,5.6452,177.15,177.09,2.99]
[1753878750875,3.15,177.16,177.09,2.99]
[1753878751770,7.01188497,177.2,177.1,2.99]
[1753878751771,3.15,177.2,177.1,2.99]
[1753878751969,8.1177283,177.19,177.1,2.99]
[1753878752168,4.58943099,177.18,177.1,2.99]
[1753878752384,3.15,177.2,177.13,2.99]
[1753878752574,8.11247515,177.19,177.13,2.99]
[1753878752879,7.01188497,177.26,177.13,2.99]
[1753878752880,3.15,177.22,177.13,2.99]
[1753878753072,7.01188497,177.2,177.13,2.99]
[1753878753274,3.15,177.18,177.1,2.99]
[1753878753481,3.15,177.15,177.1,8.6366]
[1753878753670,7.01188497,177.2,177.12,2.99]
[1753878753874,3.15,177.15,177.12,2.99]
[1753878754182,3.15,177.19,177.12,2.99]
[1753878754372,3.15,177.16,177.12,2.99]
[1753878754576,3.15,177.14,177.12,2.99]
[1753878755481,3.15,177.14,177.1,8.6364]
[1753878755782,3.15,177.13,177.1,2.99]
[1753878755984,3.15,177.19,177.1,2.99]
[1753878756182,3.15,177.17,177.14,2.99]
[1753878756376,4.65700133,177.21,177.09,7.01188497]
[1753878756377,4.57673976,177.16,177.1,2.99]
[1753878756683,3.15,177.2,177.1,2.99]
[1753878756878,17.66374822,177.19,177.12,4.62734452]
[1753878757082,15.72511867,177.18,177.12,4.62734452]
[1753878757280,8.10142119,177.17,177.16,4.62734452]
[1753878757484,8.10142119,177.17,177.16,13.26214452]
[1753878757686,3.15,177.24,177.16,7.61734452]
[1753878757877,9.56333146,177.23,177.19,4.62734452]
[1753878758081,9.56333146,177.22,177.19,4.62734452]
[1753878758274,3.15,177.2,177.17,4.62734452]
[1753878758583,3.15,177.26,177.17,4.62734452]
[1753878758776,3.15,177.24,177.17,4.62734452]
[1753878758977,9.56388413,177.23,177.19,4.62734452]
[1753878759179,3.15,177.21,177.17,4.62734452]
[1753878759381,5.08745585,177.2,177.13,4.62734452]
[1753878759583,7.62709205,177.19,177.13,4.62734452]
[1753878759784,3.15,177.19,177.15,4.62734452]
[1753878759984,3.15,177.22,177.15,4.62734452]
[1753878760183,12.71480674,177.21,177.17,4.62734452]
[1753878760376,3.15,177.25,177.17,4.62734452]
[1753878760586,3.15,177.23,177.17,4.62734452]
[1753878760786,3.15,177.21,177.17,4.62734452]
[1753878760986,3.15,177.19,177.13,4.62734452]
[1753878761180,3.15,177.17,177.11,4.62734452]
[1753878761788,3.15,177.16,177.12,5.6458]
[1753878761983,3.15,177.14,177.11,4.62734452]
[1753878762291,3.15,177.14,177.11,10.27364452]
[1753878762591,3.15,177.14,177.08,487.88]
[1753878762592,4.62734452,177.19,177.09,4.62734452]
[1753878762781,3.15,177.17,177.08,379.28]
[1753878762984,3.15,177.15,177.08,379.28]
[1753878763189,4.47641231,177.14,177.08,379.28]
[1753878763386,3.15,177.12,177.08,379.28]
[1753878763582,3.15,177.11,177.08,379.28]
[1753878763786,3.15,177.19,177.08,379.28]
[1753878763987,3.15,177.14,177.09,5.6468]
[1753878764589,5.6454,177.14,177.08,384.9272]
[1753878764784,3.15,177.13,177.08,384.9272]
[1753878764987,3.15,177.12,177.07,5.6475]
[1753878765182,3.15,177.12,177.05,108.58]
[1753878765587,3.15,177.1,177.05,108.58]
[1753878765783,3.15,177.1,177.01,7.03442023]
[1753878765985,3.15,177.1,176.98,379.32]
[1753878765986,3.15,177.08,176.98,7.03442023]
[1753878766186,3.15,177.06,176.96,108.54]
[1753878766391,3.15,177.04,176.96,108.54]
[1753878766689,3.15,177.04,176.98,7.03442023]
[1753878766884,3.15,177.09,177.01,7.03442023]
[1753878767092,3.15,177.07,177.01,7.03442023]
[1753878767481,4.47000595,177.06,177.01,7.03442023]
[1753878767686,3.15,177.05,177.01,7.03442023]
[1753878767886,3.15,177.04,177.01,7.03442023]
[1753878768086,4.65700133,177.11,177.01,7.03442023]
[1753878768387,3.15,177.04,176.92,115.47442023]
[1753878768582,10.11790952,177.03,176.96,5.6509]
[1753878768788,3.15,177.01,176.95,7.03442023]
[1753878769188,3.15,177.0,176.95,7.03442023]
[1753878769389,3.15,177.06,176.95,7.03442023]
[1753878769584,3.15,177.04,176.92,108.44]
[1753878769796,3.15,177.01,176.92,115.47442023]
[1753878770003,4.46424678,177.0,176.92,115.47442023]
[1753878770205,3.15,176.99,176.92,108.44]
[1753878771005,3.15,177.04,176.93,7.03442023]
[1753878771299,3.15,177.02,176.96,5.6511]
[1753878771501,3.0,177.0,176.96,5.6511]
[1753878771700,3.0,177.0,176.93,7.03442023]
[1753878771900,8.6499,177.0,176.93,5.6521]
[1753878772099,4.46168418,176.99,176.92,108.44]
[1753878772399,4.46168418,176.99,176.87,7.03442023]
[1753878772400,3.0,176.95,176.87,7.03442023]
[1753878772707,3.0,176.95,176.86,108.48]
[1753878773003,3.0,176.95,176.9,5.6529]
[1753878773199,3.0,176.95,176.88,7.03442023]
[1753878774200,3.0,176.95,176.93,5.652]
[1753878774407,3.0,176.94,176.93,5.652]
[1753878774605,3.0,176.99,176.91,7.03442023]
[1753878774906,3.0,176.99,176.93,5.6519]
[1753878775114,3.0,176.99,176.91,7.03442023]
[1753878775403,3.0,176.99,176.95,5.6514]
[1753878775600,3.0,176.99,176.91,7.03442023]
[1753878776009,3.0,176.99,176.89,7.03442023]
[1753878777103,10.56737368,176.98,176.86,115.51442023]
[1753878777308,3.0,176.97,176.86,115.51442023]
[1753878777902,3.0,176.97,176.91,5.6526]
[1753878778107,3.0,176.97,176.86,115.51442023]
[1753878778506,3.0,176.97,176.91,5.6525]
[1753878778706,5.6509,176.97,176.91,5.6525]
[1753878779009,3.0,176.96,176.86,108.48]
[1753878779314,3.0,176.97,176.86,122.51442023]
[1753878779902,4.61276832,176.96,176.86,122.51442023]
[1753878780101,3.0,176.94,176.92,5.6522]
[1753878780309,3.0,176.92,176.86,122.51442023]
[1753878780607,3.0,176.92,176.87,5.6539]
[1753878781006,3.0,176.92,176.88,5.6535]
[1753878781208,3.0,176.92,176.86,7.0]
[1753878781510,3.0,176.92,176.88,5.6536]
[1753878781705,3.0,176.91,176.86,7.0]
[1753878782204,3.0,176.91,176.9,5.6531]
[1753878782804,3.0,176.99,176.9,114.18]
[1753878783108,3.0,176.97,176.94,7.03442023]
[1753878783312,3.0,176.97,176.94,108.52]
[1753878783499,3.0,176.95,176.94,108.52]
[1753878783905,3.0,176.95,176.94,114.1718]
[1753878784210,3.0,176.95,176.94,108.52]
[1753878784903,5.6503,176.99,176.93,5.6521]
[1753878785107,3.0,176.97,176.93,5.6521]
[1753878785408,7.50514774,176.96,176.91,113.15842834]
[1753878785603,4.65700133,177.03,176.91,113.15842834]
[1753878785604,3.0,176.95,176.93,4.63842834]
[1753878785808,3.0,176.94,176.93,4.63842834]
[1753878786403,3.0,176.93,176.91,113.15842834]
[1753878786610,4.63842834,177.01,176.91,4.63842834]
[1753878786814,3.0,176.95,176.89,108.52]
[1753878787107,4.65700133,177.01,176.89,108.52]
[1753878787108,3.0,176.93,176.89,108.52]
[1753878787308,3.0,176.91,176.89,108.52]
[1753878788104,3.0,176.93,176.89,113.15842834]
[1753878788307,3.0,176.96,176.91,4.63842834]
[1753878788611,3.0,177.02,176.93,4.63842834]
[1753878788806,9.29542967,177.03,176.94,108.44]
[1753878788807,14.02090545,177.01,176.94,108.44]
[1753878789001,3.0,176.99,176.94,108.44]